fUST/lending_fUST_20240903
["ID","MTS","AMOUNT","RATE_DAILY","PERIOD"]
[337039144,1725371681840,250.0,0.00019813,2]
[337039145,1725371682216,250.0,0.00019867,2]
[337039146,1725371683067,250.0,0.00019921,2]
[337039147,1725371683306,250.0,0.00019975,2]
[337039148,1725371683566,250.0,0.00020029,2]
[337039149,1725371683776,250.0,0.00020083,2]
[337039152,1725371803227,250.0,0.00019412,2]
[337039153,1725371845580,21234.5838047,0.00019412,2]
[337039154,1725371883169,3000.0,0.00019412,2]
[337039155,1725371907274,211.3279303,0.00019412,2]
[337039156,1725371928698,422.100943,0.00019567,2]
[337039157,1725371980528,1803.743643,0.00019412,2]
[337039158,1725372063834,251.0,0.00019386,2]
[337039159,1725372066032,255.865993,0.00019377,2]
[337039160,1725372134977,184.671544,0.00018408,2]
[337039161,1725372180577,24900.0,0.00019439,2]
[337039162,1725372187230,250.0,0.00019708,2]
[337039163,1725372187557,250.0,0.00019762,2]
[337039164,1725372187717,250.0,0.00019816,2]
[337039165,1725372187978,250.0,0.0001987,2]
[337039166,1725372188410,250.0,0.00019924,2]
[337039167,1725372188656,250.0,0.00019979,2]
[337039168,1725372188937,250.0,0.00020033,2]
[337039169,1725372189186,250.0,0.00020087,2]
[337039171,1725372244641,1753.307592,0.00019571,2]
[337039172,1725372245583,176.18913,0.00019292,2]
[337039175,1725372381454,777.9850358,0.00019529,2]
[337039176,1725372385670,8025.6406946,0.00019546,2]
[337039177,1725372396897,26100.2133299,0.00019546,2]
[337039178,1725372397265,3000.0,0.00019546,2]
[337039179,1725372458201,428.7600084,0.00019545,2]
[337039180,1725372471829,1353.505078,0.00019545,2]
[337039181,1725372556123,-250.0,0.00020141,2]
[337039182,1725372556145,-250.0,0.00020195,2]
[337039183,1725372556166,-250.0,0.00020249,2]
[337039184,1725372556188,-250.0,0.00020303,2]
[337039185,1725372556208,-184.671544,0.00020346,2]
[337039186,1725372556231,-250.0,0.00020357,2]
[337039187,1725372556252,-250.0,0.00020411,2]
[337039188,1725372556275,-250.0,0.00020465,2]
[337039189,1725372556296,-250.0,0.00020519,2]
[337039190,1725372556319,-250.0,0.00020573,2]
[337039191,1725372556361,-250.0,0.00020627,2]
[337039192,1725372556410,-250.0,0.00020681,2]
[337039193,1725372556458,-687.51810266,0.000207,2]
[337039194,1725372556496,-674.17255796,0.00020702,2]
[337039195,1725372607695,643.30017004,0.0001932,2]
[337039196,1725372619415,2504.2462963,0.00019692,2]
[337039258,1725372633084,-473.9150085,0.00020286,2]
[337039259,1725372633094,-9694.75167754,0.00020637,2]
[337039260,1725372633107,-434.4293937,0.00020637,2]
[337039261,1725372633335,-272.0,0.00020637,2]
[337039262,1725372633348,-736.02,0.00020637,2]
[337039263,1725372633451,-803.4653928,0.00020637,2]
[337039264,1725372633461,-28289.0626992,0.00020637,2]
[337039265,1725372633471,-28289.06269918,0.00020662,2]
[337039266,1725372633485,-6510.99219561,0.00020688,2]
[337039267,1725372636691,171.626651,0.00018731,2]
[337039289,1725372638776,-254.88920494,0.00020661,2]
[337039291,1725372638786,-500.0,0.00020661,2]
[337039293,1725372638796,-500.0,0.00020661,2]
[337039295,1725372638805,-553.92333163,0.00020661,2]
[337039296,1725372638815,-243.63491484,0.00020661,2]
[337039298,1725372638825,-500.0,0.00020661,2]
[337039300,1725372638834,-544.52889626,0.00020661,2]
[337039302,1725372638844,-500.0,0.00020661,2]
[337039304,1725372638854,-553.92333163,0.00020661,2]
[337039305,1725372638864,-500.0,0.00020661,2]
[337039307,1725372638876,-500.0,0.00020661,2]
[337039309,1725372638886,-553.92333163,0.00020661,2]
[337039311,1725372638896,-500.0,0.00020661,2]
[337039313,1725372638915,-500.0,0.00020661,2]
[337039314,1725372638926,-553.92333163,0.00020661,2]
[337039316,1725372638936,-500.0,0.00020661,2]
[337039318,1725372638950,-553.92333163,0.00020661,2]
[337039320,1725372638961,-553.92333163,0.00020661,2]
[337039322,1725372638971,-500.0,0.00020661,2]
[337039324,1725372638984,-553.92333163,0.00020661,2]
[337039327,1725372638996,-553.92333163,0.00020661,2]
[337039329,1725372639006,-553.92333163,0.00020661,2]
[337039331,1725372639017,-553.92333163,0.00020661,2]
[337039333,1725372639027,-553.92333163,0.00020661,2]
[337039335,1725372639037,-553.92333163,0.00020661,2]
[337039337,1725372639047,-553.92333163,0.00020661,2]
[337039339,1725372639058,-553.92333163,0.00020661,2]
[337039341,1725372639068,-500.0,0.00020661,2]
[337039343,1725372639078,-553.92333163,0.00020661,2]
[337039345,1725372639089,-500.0,0.00020661,2]
[337039347,1725372639099,-553.92333163,0.00020661,2]
[337039349,1725372639109,-500.0,0.00020661,2]
[337039351,1725372639118,-553.92333163,0.00020661,2]
[337039353,1725372639128,-500.0,0.00020661,2]
[337039355,1725372639138,-553.92333163,0.00020661,2]
[337039357,1725372639147,-553.92333163,0.00020661,2]
[337039359,1725372639157,-553.92333163,0.00020661,2]
[337039361,1725372639166,-553.92333163,0.00020661,2]
[337039363,1725372639176,-553.92333163,0.00020661,2]
[337039364,1725372639186,-553.92333163,0.00020661,2]
[337039365,1725372639195,-553.92333163,0.00020661,2]
[337039366,1725372639205,-553.92333163,0.00020661,2]
[337039367,1725372639215,-553.92333163,0.00020661,2]
[337039369,1725372639225,-553.92333163,0.00020661,2]
[337039371,1725372639239,-553.92333163,0.00020661,2]
[337039373,1725372639248,-553.92333163,0.00020661,2]
[337039375,1725372639257,-500.0,0.00020661,2]
[337039376,1725372639267,-553.92333163,0.00020661,2]
[337039378,1725372639276,-553.92333163,0.00020661,2]
[337039380,1725372639285,-553.92333163,0.00020661,2]
[337039382,1725372639296,-500.0,0.00020661,2]
[337039384,1725372639306,-553.92333163,0.00020661,2]
[337039386,1725372639316,-553.92333163,0.00020661,2]
[337039387,1725372639325,-553.92333163,0.00020661,2]
[337039388,1725372639335,-553.92333163,0.00020661,2]
[337039390,1725372639345,-553.92333163,0.00020661,2]
[337039392,1725372639356,-553.92333163,0.00020661,2]
[337039393,1725372639366,-553.92333163,0.00020661,2]
[337039395,1725372639375,-553.92333163,0.00020661,2]
[337039396,1725372639385,-553.92333163,0.00020661,2]
[337039397,1725372639395,-553.92333163,0.00020661,2]
[337039398,1725372639404,-553.92333163,0.00020661,2]
[337039399,1725372639413,-553.92333163,0.00020661,2]
[337039400,1725372639424,-553.92333163,0.00020661,2]
[337039401,1725372639433,-553.92333163,0.00020661,2]
[337039402,1725372639443,-553.92333163,0.00020661,2]
[337039403,1725372639455,-553.92333163,0.00020661,2]
[337039404,1725372639465,-21778.07050357,0.00020688,2]
[337039405,1725372639475,-476.45,0.00020703,3]
[337039406,1725372639485,-238.22,0.00020703,3]
[337039407,1725372639494,-171.626651,0.00020703,2]
[337039408,1725372639504,-28289.06269918,0.00020713,2]
[337039409,1725372639513,-300.0,0.00020726,2]
[337039410,1725372639523,-300.0,0.00020726,2]
[337039411,1725372639533,-3811.6,0.00020727,3]
[337039412,1725372639543,-1905.8,0.00020727,3]
[337039413,1725372639553,-952.9,0.00020727,3]
[337039414,1725372639562,-250.0,0.00020735,2]
[337039415,1725372639573,-500.0,0.00020736,2]
[337039416,1725372639584,-251.95730552,0.00020736,2]
[337039417,1725372639594,-500.0,0.00020736,2]
[337039418,1725372639605,-500.0,0.00020736,2]
[337039419,1725372639616,-500.0,0.00020736,2]
[337039420,1725372639627,-500.0,0.00020736,2]
[337039421,1725372639637,-500.0,0.00020736,2]
[337039422,1725372639647,-500.0,0.00020736,2]
[337039423,1725372639657,-500.0,0.00020736,2]
[337039424,1725372639666,-500.0,0.00020736,2]
[337039425,1725372639676,-500.0,0.00020736,2]
[337039426,1725372639685,-500.0,0.00020736,2]
[337039427,1725372639695,-287.53569157,0.00020736,2]
[337039428,1725372639705,-425.28550964,0.00020736,2]
[337039429,1725372639715,-500.0,0.00020736,2]
[337039430,1725372639781,-617.35208981,0.00020736,2]
[337039431,1725372639792,-500.0,0.00020736,2]
[337039432,1725372639801,-500.0,0.00020736,2]
[337039433,1725372639810,-500.0,0.00020736,2]
[337039434,1725372639821,-500.0,0.00020736,2]
[337039435,1725372639833,-500.0,0.00020736,2]
[337039436,1725372639843,-500.0,0.00020736,2]
[337039437,1725372639853,-366.70716622,0.00020736,2]
[337039438,1725372639863,-500.0,0.00020736,2]
[337039439,1725372639873,-500.0,0.00020736,2]
[337039440,1725372639883,-500.0,0.00020736,2]
[337039441,1725372639894,-500.0,0.00020736,2]
[337039442,1725372639905,-28289.06269918,0.00020738,2]
[337039443,1725372639915,-170.50618581,0.00020773,2]
[337039444,1725372639924,-150.112233,0.000208,3]
[337039445,1725372639934,-2454.74191746,0.00020802,2]
[337039446,1725372639944,-752114.692732,0.00020804,2]
[337039447,1725372639954,-21503.857372,0.00020838,2]
[337039448,1725372639963,-168.16605167,0.00020873,2]
[337039449,1725372639973,-500.0,0.00020873,2]
[337039450,1725372639987,-159.8180718,0.00020873,2]
[337039451,1725372640002,-200.11197143,0.00020873,2]
[337039452,1725372640012,-158.58904711,0.00020873,2]
[337039453,1725372640022,-500.0,0.00020873,2]
[337039454,1725372640032,-500.54207518,0.00020873,2]
[337039455,1725372640042,-158.59078542,0.00020873,2]
[337039456,1725372640052,-178.12258839,0.00020873,2]
[337039457,1725372640062,-161.07763022,0.00020873,2]
[337039458,1725372640072,-500.0,0.00020873,2]
[337039459,1725372640082,-500.0,0.00020873,2]
[337039460,1725372640092,-498.09372642,0.00020902,2]
[337039461,1725372640102,-150.112233,0.000212,5]
[337039462,1725372640112,-465.44575043,0.000213,2]
[337039463,1725372640121,-200.84843461,0.00021421,2]
[337039464,1725372640131,-1000.03131642,0.00021421,2]
[337039465,1725372640140,-1000.0,0.00021421,2]
[337039466,1725372640150,-203.66264609,0.00021421,2]
[337039467,1725372640160,-150.112233,0.000216,4]
[337039468,1725372640170,-150.112233,0.000216,3]
[337039469,1725372640179,-500.0,0.00021673,2]
[337039471,1725372640189,-499.16,0.000217,2]
[337039472,1725372640199,-210.18,0.000217,2]
[337039473,1725372640208,-150.112233,0.000219,3]
[337039474,1725372640218,-466.65468632,0.00021947,2]
[337039475,1725372640230,-150.112233,0.00022,5]
[337039477,1725372640251,-302.33493269,0.00022,2]
[337039479,1725372640261,-952.9,0.00022073,3]
[337039480,1725372640271,-476.44,0.00022073,3]
[337039481,1725372640281,-7623.2,0.00022097,3]
[337039483,1725372640290,-3811.6,0.00022097,3]
[337039484,1725372640301,-1905.8,0.00022097,3]
[337039486,1725372640311,-150.112233,0.000222,4]
[337039488,1725372640321,-302.33493269,0.0002222,2]
[337039490,1725372640331,-244.06064683,0.00022221,2]
[337039492,1725372640343,-1249.73449495,0.00022319,2]
[337039493,1725372640354,-465.02228752,0.00022365,2]
[337039495,1725372640364,-150.112233,0.000224,5]
[337039497,1725372640375,-302.33493269,0.0002244,2]
[337039499,1725372640384,-150.112233,0.000225,4]
[337039500,1725372640394,-420.0,0.00022552,2]
[337039503,1725372640406,-302.33493269,0.0002266,2]
[337039504,1725372640418,-420.0,0.00022799,2]
[337039506,1725372640428,-150.112233,0.000228,2]
[337039508,1725372640438,-150.112233,0.000228,5]
[337039509,1725372640449,-302.33493269,0.0002288,2]
[337039510,1725372640458,-465.08273432,0.00023044,2]
[337039511,1725372640468,-150.112233,0.000231,4]
[337039512,1725372640477,-453.57785298,0.000231,4]
[337039513,1725372640495,-208.169129,0.000231,5]
[337039514,1725372640505,-150.112233,0.000232,2]
[337039515,1725372640515,-465.00111438,0.00023484,2]
[337039516,1725372640526,-150.112233,0.000235,2]
[337039517,1725372640535,-150.112233,0.000235,2]
[337039518,1725372640545,-150.112233,0.000235,3]
[337039519,1725372640555,-150.112233,0.000238,4]
[337039520,1725372640565,-150.112233,0.000239,3]
[337039521,1725372640574,-150.112233,0.000239,3]
[337039522,1725372640584,-201.0,0.00024,2]
[337039523,1725372640594,-150.112233,0.000241,2]
[337039524,1725372640604,-150.112233,0.000243,3]
[337039525,1725372640614,-150.112233,0.000243,5]
[337039526,1725372640624,-150.112233,0.000244,2]
[337039527,1725372640634,-587.0,0.00024538,2]
[337039528,1725372640644,-11940.66646403,0.00024547,2]
[337039529,1725372640655,-997.70527786,0.00024635,2]
[337039530,1725372640666,-465.00005572,0.00024658,2]
[337039531,1725372640677,-500.0,0.00024658,2]
[337039532,1725372640687,-500.0,0.00024658,2]
[337039533,1725372640697,-500.0,0.00024658,2]
[337039534,1725372640760,-500.0,0.00024658,2]
[337039535,1725372640771,-500.0,0.00024658,2]
[337039536,1725372640781,-500.0,0.00024658,2]
[337039537,1725372640791,-500.0,0.00024658,2]
[337039538,1725372640802,-170.89330773,0.00024658,2]
[337039539,1725372640812,-500.0,0.00024658,2]
[337039540,1725372640822,-500.0,0.00024658,2]
[337039541,1725372640832,-500.0,0.00024658,2]
[337039542,1725372640842,-500.0,0.00024658,2]
[337039543,1725372640853,-500.0,0.00024658,2]
[337039544,1725372640862,-500.0,0.00024658,2]
[337039545,1725372640872,-500.0,0.00024658,2]
[337039546,1725372640882,-500.0,0.00024658,2]
[337039547,1725372640892,-500.0,0.00024658,2]
[337039548,1725372640904,-500.0,0.00024658,2]
[337039549,1725372640918,-500.0,0.00024658,2]
[337039550,1725372640929,-500.0,0.00024658,2]
[337039552,1725372640940,-632.81675148,0.00024658,2]
[337039553,1725372640951,-500.0,0.00024658,2]
[337039554,1725372640961,-500.0,0.00024658,2]
[337039555,1725372640971,-500.0,0.00024658,2]
[337039556,1725372640981,-500.0,0.00024658,2]
[337039558,1725372640996,-500.0,0.00024658,2]
[337039559,1725372641007,-500.0,0.00024658,2]
[337039561,1725372641018,-500.0,0.00024658,2]
[337039563,1725372641028,-500.0,0.00024658,2]
[337039564,1725372641038,-500.0,0.00024658,2]
[337039566,1725372641048,-500.0,0.00024658,2]
[337039568,1725372641059,-500.0,0.00024658,2]
[337039570,1725372641068,-500.0,0.00024658,2]
[337039571,1725372641079,-500.0,0.00024658,2]
[337039572,1725372641089,-500.0,0.00024658,2]
[337039574,1725372641099,-338.08959514,0.00024658,2]
[337039576,1725372641109,-500.0,0.00024658,2]
[337039578,1725372641118,-500.0,0.00024658,2]
[337039580,1725372641128,-503.48924858,0.00024673,2]
[337039582,1725372641138,-161.11827143,0.00024699,2]
[337039584,1725372641148,-647005.78,0.000247,14]
[337039586,1725372641159,-3000.0,0.00025,2]
[337039588,1725372641169,-3000.0,0.0002501,2]
[337039590,1725372641179,-3000.0,0.0002502,2]
[337039593,1725372641191,-3000.0,0.0002503,2]
[337039596,1725372641214,-370997.1377,0.00025039,2]
[337039599,1725372641233,-3000.0,0.0002504,2]
[337039602,1725372641256,-3000.0,0.0002505,2]
[337039605,1725372641276,-3000.0,0.0002506,2]
[337039608,1725372641296,-3000.0,0.0002507,2]
[337039611,1725372641315,-587.0,0.00025078,2]
[337039614,1725372641335,-3000.0,0.0002508,2]
[337039616,1725372641351,-3000.0,0.0002509,2]
[337039619,1725372641370,-3000.0,0.000251,2]
[337039622,1725372641389,-3000.0,0.0002511,2]
[337039625,1725372641407,-3000.0,0.0002512,2]
[337039628,1725372641421,-3000.0,0.0002513,2]
[337039631,1725372641443,-3000.0,0.0002514,2]
[337039633,1725372641460,-2454.74191737,0.00025146,2]
[337039636,1725372641477,-3000.0,0.0002515,2]
[337039638,1725372641495,-4942.992435,0.0002516,2]
[337039641,1725372641510,-465.00000279,0.00025891,2]
[337039643,1725372641525,-210.18,0.000259,14]
[337039646,1725372641539,-499.16,0.000261,14]
[337039648,1725372641554,-150.953,0.00026206,2]
[337039651,1725372641569,-500.0,0.00026226,2]
[337039653,1725372641584,-504.49023696,0.00026226,2]
[337039656,1725372641599,-55648.0,0.00026413,2]
[337039658,1725372641614,-5097.88628491,0.0002666,3]
[337039661,1725372641628,-823.0,0.00026699,2]
[337039664,1725372641643,-1000.0,0.00026774,2]
[337039666,1725372641657,-246.5,0.00026777,2]
[337039669,1725372641671,-250.0,0.00026836,2]
[337039671,1725372641687,-250.0,0.00026836,2]
[337039674,1725372641702,-293.725,0.00026836,2]
[337039676,1725372641716,-563.474,0.00026836,2]
[337039679,1725372641733,-465.00000014,0.00027185,2]
[337039682,1725372641750,-5697.09117385,0.00027328,2]
[337039684,1725372641767,-151.0,0.00027399,2]
[337039687,1725372641783,-198228.5,0.000274,14]
[337039690,1725372641799,-109399.68,0.000274,14]
[337039692,1725372641815,-823.0,0.00027586,2]
[337039695,1725372641831,-5697.09117385,0.00027628,2]
[337039698,1725372641847,-1500.0,0.00027672,4]
[337039700,1725372641858,-5697.09117385,0.00027933,2]
[337039702,1725372641868,-5697.09117385,0.0002796,2]
[337039714,1725372641980,-246.5,0.0002809,3]
[337039716,1725372641993,-399.71002044,0.00028167,2]
[337039718,1725372642003,-5697.09117385,0.00028327,2]
[337039720,1725372642013,-11940.66646403,0.00028458,2]
[337039722,1725372642022,-465.00000001,0.00028544,2]
[337039724,1725372642031,-151.0,0.00028653,7]
[337039726,1725372642041,-151.0,0.00028653,7]
[337039728,1725372642050,-5697.09117385,0.00028679,2]
[337039730,1725372642060,-2000.0,0.00028777,4]
[337039732,1725372642070,-151.0,0.00028966,7]
[337039733,1725372642079,-151.0,0.00028966,7]
[337039734,1725372642089,-179331.11056011,0.00028966,2]
[337039735,1725372642099,-5697.09117385,0.00028977,2]
[337039736,1725372642109,-1152.0,0.00029051,2]
[337039737,1725372642118,-153.0,0.00029212,2]
[337039738,1725372642128,-5697.09117385,0.00029306,2]
[337039739,1725372642137,-1353.505078,0.00029318,2]
[337039740,1725372642147,-5697.09117385,0.00029381,2]
[337039741,1725372642156,-246.5,0.00029403,4]
[337039742,1725372642165,-2454.74191737,0.0002949,2]
[337039743,1725372642175,-5697.09117385,0.00029677,2]
[337039744,1725372642184,-150.0,0.00029836,2]
[337039745,1725372642193,-150.0,0.00029836,2]
[337039746,1725372642203,-150.0,0.00029836,2]
[337039747,1725372642213,-523.0,0.00029836,2]
[337039748,1725372642223,-5697.09117385,0.0002987,2]
[337039749,1725372642232,-210.18,0.000299,14]
[337039751,1725372642246,-352.875701,0.0003,2]
[337039753,1725372642256,-398.0,0.0003,2]
[337039755,1725372642268,-500.0,0.00030027,11]
[337039756,1725372642277,-2173.23338372,0.00030042,4]
[337039758,1725372642287,-321089.24778418,0.000301,14]
[337039761,1725372642302,-325916.53221582,0.000301,14]
[337039762,1725372642312,-151.0,0.000301,7]
[337039764,1725372642321,-151.0,0.000301,7]
[337039766,1725372642330,-151.0,0.000301,7]
[337039768,1725372642341,-499.16,0.000301,14]
[337039770,1725372642352,-151.0,0.000301,7]
[337039771,1725372642362,-184.720236,0.000301,7]
[337039773,1725372642372,-184.720236,0.000301,7]
[337039775,1725372642381,-248.065849,0.000301,7]
[337039776,1725372642391,-248.065849,0.000301,7]
[337039778,1725372642400,-151.0,0.000301,7]
[337039779,1725372642410,-151.0,0.000301,7]
[337039780,1725372642419,-151.0,0.000301,7]
[337039781,1725372642429,-156.33606,0.000301,7]
[337039782,1725372642439,-151.0,0.000301,7]
[337039783,1725372642448,-151.0,0.000301,7]
[337039784,1725372642457,-151.0,0.000301,7]
[337039785,1725372642466,-151.0,0.000301,7]
[337039786,1725372642475,-151.0,0.000301,2]
[337039787,1725372642487,-181.182763,0.000301,7]
[337039788,1725372642498,-151.0,0.000301,7]
[337039789,1725372642509,-151.0,0.000301,7]
[337039790,1725372642519,-667.716179,0.000301,7]
[337039791,1725372642529,-667.716179,0.000301,7]
[337039792,1725372642540,-151.0,0.000301,7]
[337039793,1725372642551,-1949.147516,0.000301,7]
[337039794,1725372642563,-1949.147516,0.000301,7]
[337039795,1725372642574,-151.0,0.000301,7]
[337039796,1725372642585,-182.478869,0.000301,7]
[337039797,1725372642595,-182.478869,0.000301,7]
[337039798,1725372642606,-151.936254,0.000301,7]
[337039799,1725372642616,-190.461227,0.000301,7]
[337039800,1725372642627,-190.461227,0.000301,7]
[337039801,1725372642639,-151.0,0.000301,7]
[337039802,1725372642649,-153.500725,0.000301,7]
[337039803,1725372642658,-4584.4154305,0.00030115,2]
[337039804,1725372642669,-500.0,0.00030146,11]
[337039805,1725372642679,-5697.09117385,0.00030282,2]
[337039806,1725372642690,-150.0,0.00030313,2]
[337039807,1725372642699,-1152.0,0.00030345,2]
[337039808,1725372642709,-150.0,0.00030437,2]
[337039809,1725372642720,-4584.4154305,0.00030615,3]
[337039810,1725372642730,-5697.09117385,0.00030635,2]
[337039811,1725372642743,-1015.004247,0.000307,7]
[337039812,1725372642752,-246.5,0.00030715,5]
[337039813,1725372642762,-5697.09117385,0.00030728,2]
[337039814,1725372642771,-150.0,0.00030823,2]
[337039815,1725372642780,-515.0,0.00031,2]
[337039816,1725372642790,-5697.09117392,0.00031027,2]
[337039817,1725372642800,-600.0,0.0003104,50]
[337039818,1725372642810,-150.0,0.00031045,2]
[337039819,1725372642819,-1000.0,0.000312,7]
[337039820,1725372642831,-150.01,0.00031299,2]
[337039821,1725372642841,-1215.97219485,0.00031299,2]
[337039822,1725372642852,-1326.0,0.0003161,2]
[337039823,1725372642862,-109399.68,0.000317,14]
[337039824,1725372642871,-175.938759,0.000317,2]
[337039825,1725372642881,-1000.0,0.000317,7]
[337039826,1725372642891,-600.0,0.0003189,64]
[337039827,1725372642904,-600.0,0.0003189,64]
[337039828,1725372642914,-600.0,0.0003189,64]
[337039829,1725372642924,-600.0,0.0003189,64]
[337039830,1725372642933,-600.0,0.0003189,64]
[337039831,1725372642944,-7520.75219815,0.000319,2]
[337039832,1725372642954,-208.0368303,0.00031952,2]
[337039833,1725372642963,-208.0368303,0.00031952,2]
[337039834,1725372642973,-208.0368303,0.00031952,2]
[337039835,1725372642986,-208.0368303,0.00031952,2]
[337039836,1725372642998,-415.4250919,0.00031952,2]
[337039837,1725372643014,-415.5114408,0.00031952,2]
[337039838,1725372643024,-308.136337,0.00032,30]
[337039840,1725372643034,-402.79494831,0.00032,30]
[337039841,1725372643044,-3000.0,0.00032,10]
[337039842,1725372643055,-301.594098,0.00032,16]
[337039843,1725372643064,-1000.0,0.00032,7]
[337039844,1725372643074,-1000.0,0.00032,7]
[337039845,1725372643083,-1000.0,0.00032,7]
[337039846,1725372643093,-1000.0,0.00032,7]
[337039847,1725372643103,-1000.0,0.00032,7]
[337039848,1725372643112,-1000.0,0.00032,7]
[337039849,1725372643122,-1000.0,0.00032,7]
[337039851,1725372643131,-1000.0,0.00032,7]
[337039853,1725372643142,-1000.0,0.00032,7]
[337039855,1725372643151,-1000.0,0.00032,7]
[337039857,1725372643160,-818.0,0.00032,7]
[337039859,1725372643170,-1000.0,0.00032,7]
[337039861,1725372643179,-1000.0,0.00032,7]
[337039863,1725372643189,-1000.0,0.00032,7]
[337039865,1725372643199,-1000.0,0.00032,7]
[337039867,1725372643209,-1000.0,0.00032,7]
[337039868,1725372643218,-1000.0,0.00032,7]
[337039870,1725372643229,-1000.0,0.00032,7]
[337039871,1725372643248,-1000.0,0.00032,7]
[337039872,1725372643258,-1000.0,0.00032,7]
[337039873,1725372643267,-1000.0,0.00032,7]
[337039874,1725372643277,-185.0,0.00032,7]
[337039875,1725372643287,-600.0,0.0003201,67]
[337039876,1725372643297,-631.40463408,0.0003201,67]
[337039877,1725372643307,-600.0,0.0003201,67]
[337039878,1725372643316,-246.5,0.00032028,5]
[337039879,1725372643326,-600.0,0.00032155,70]
[337039880,1725372643336,-600.0,0.00032155,70]
[337039882,1725372643346,-600.0,0.00032155,70]
[337039884,1725372643356,-96130.82403489,0.000322,15]
[337039886,1725372643366,-198228.5,0.000322,14]
[337039888,1725372643375,-210.18,0.000322,14]
[337039890,1725372643385,-499.16,0.000323,14]
[337039896,1725372643457,-11940.66646403,0.00032368,2]
[337039898,1725372643467,-600.0,0.00032421,75]
[337039900,1725372643477,-3647.90720848,0.000325,2]
[337039902,1725372643492,-466.72173388,0.00032521,2]
[337039904,1725372643502,-466.72173388,0.00032658,2]
[337039906,1725372643512,-612.0202152,0.00032779,84]
[337039907,1725372643522,-466.72173388,0.00032795,2]
[337039909,1725372643532,-647005.78,0.000328,14]
[337039911,1725372643541,-151.0,0.000328,7]
[337039913,1725372643552,-151.0,0.000328,7]
[337039914,1725372643562,-151.0,0.000328,7]
[337039915,1725372643572,-151.0,0.000328,7]
[337039916,1725372643582,-184.720236,0.000328,7]
[337039918,1725372643591,-184.720236,0.000328,7]
[337039920,1725372643601,-184.720236,0.000328,7]
[337039922,1725372643611,-184.720236,0.000328,7]
[337039923,1725372643621,-248.065849,0.000328,7]
[337039924,1725372643631,-248.065849,0.000328,7]
[337039925,1725372643640,-248.065849,0.000328,7]
[337039926,1725372643650,-248.065849,0.000328,7]
[337039927,1725372643660,-151.0,0.000328,7]
[337039928,1725372643669,-151.0,0.000328,7]
[337039929,1725372643679,-151.0,0.000328,7]
[337039930,1725372643688,-151.0,0.000328,7]
[337039932,1725372643698,-151.0,0.000328,7]
[337039933,1725372643707,-155.110836,0.000328,7]
[337039934,1725372643717,-151.0,0.000328,7]
[337039935,1725372643729,-151.0,0.000328,7]
[337039936,1725372643744,-151.0,0.000328,7]
[337039937,1725372643753,-188.043579,0.000328,7]
[337039938,1725372643762,-210.097767,0.000328,7]
[337039939,1725372643772,-151.0,0.000328,2]
[337039940,1725372643782,-151.0,0.000328,2]
[337039941,1725372643793,-151.0,0.000328,7]
[337039942,1725372643802,-151.0,0.000328,7]
[337039943,1725372643812,-183.796374,0.000328,7]
[337039944,1725372643822,-667.716179,0.000328,7]
[337039945,1725372643832,-667.716179,0.000328,7]